[Event "Mitropa Cup Women 2022"]
[Site "Corte"]
[Date "2022.05.07"]
[Round "8.4"]
[White "Sevcikova, Lucia"]
[Black "Vujnovic, Patricija"]
[Result "1-0"]
[ECO "A69"]
[WhiteElo "2019"]
[BlackElo "2108"]
[Annotator "TA"]
[PlyCount "99"]
[EventDate "2022.04.30"]
[EventType "team-tourn"]
[EventCountry "FRA"]
[SourceTitle "playchess.com"]
[Source "ChessBase"]
[SourceQuality "1"]
[WhiteTeam "Slovakia"]
[BlackTeam "Croatia"]
[WhiteTeamCountry "SVK"]
[BlackTeamCountry "CRO"]
[TimeControl "40/5400+30:1800+30"]

{[%evp 22,99,-21,-3,-12,0,0,-119,-116,-167,-163,-169,-60,-50,-54,-56,-25,-25,-25,-20,-8,-10,39,43,31,27,50,39,47,0,0,-23,-33,-46,0,-5,0,0,0,0,0,0,0,0,0,0,44,0,0,-2,0,0,12,6,115,115,115,122,1097,516,592,614,29974,29976,29975,29976,29976,29976,29976,29977,29982,29983,29984,29985,29985,29986,29986,29987,29987,29988]} 1. d4 {[%emt 0:00:06]} Nf6 {[%emt 0:00:05]} 2. c4 {[%emt 0:00:06]} e6 {[%emt 0:00:10]} 3. Nc3 {[%emt 0:00:08]} c5 {[%emt 0:00:10]} 4. d5 {[%emt 0:00:06]} exd5 {[%emt 0:00:19]} 5. cxd5 {[%emt 0:00:06]} d6 {[%emt 0:00:03]} 6. e4 {[%emt 0:00:11]} g6 {[%emt 0:00:05]} 7. f4 {[%emt 0:00:04]} Bg7 {[%emt 0:00:22]} 8. Nf3 {[%emt 0:00:08]} O-O {[%emt 0:00:50]} 9. Be2 {[%emt 0:00:09]} Re8 {[%emt 0:02:26]} 10. e5 dxe5 {[%emt 0:04:31]} 11. fxe5 {[%emt 0:01:48]} Ng4 {[%emt 0:00:51]} 12. e6 {[%emt 0:00:21]} fxe6 {[%emt 0:01:21] A69: Modern Benoni: Four Pawns Attack with 9...Re8.} 13. d6 {[%emt 0:00:05]} Bd7 {[%emt 0:16:03] [#] 13...Nc6 is the modern continuation.} 14. Ne4 $146 {[%emt 0:20:23]} (14. O-O $1 $11) ({Predecessor:} 14. O-O Bc6 {0-1 (14) Tritt,M (2621)-Winckelmann,T (2584) ICCF email 2010}) 14... Bc6 $17 {[%emt 0:01:33] Black is better.} 15. Bg5 {[%emt 0:05:25]} (15. Nc3 $17 {was necessary.}) 15... Qb6 $19 {[%emt 0:00:50]} 16. Nfd2 {[%emt 0:05:53]} Bxe4 {[%emt 0:04:06]} (16... Qxb2 $19 17. Rb1 Qd4 $1) 17. Nxe4 $15 {[%emt 0:13:53]} Qb4+ {[%emt 0:01:57]} ({But not} 17... Qxb2 18. Rb1 Bc3+ 19. Nxc3 (19. Kf1 Rf8+ 20. Bf3 Qxa2 $17) 19... Qxc3+ 20. Qd2 (20. Bd2 Qe5 $11) 20... Qxd2+ 21. Kxd2 $16 (21. Bxd2 Ne5 $15)) 18. Nd2 {[%emt 0:01:30]} h6 {[%emt 0:24:46]} (18... Bxb2 $2 19. Rb1 $18) 19. Bxg4 {Black must now prevent Be3.} hxg5 {[%emt 0:00:04]} 20. O-O {[%emt 0:17:32][%cal Od1f3] Hoping for Qf3!} Qd4+ {[%emt 0:01:38]} (20... Bxb2 $2 21. Qc2 Kg7 22. Rab1 Qxg4 23. Qxb2+ e5 24. Qb3 $18 (24. Qxb7+ Nd7 $16)) 21. Kh1 {[%emt 0:00:25][%cal Od1b1]} Nc6 {[%emt 0:06:28]} (21... Nd7 $11) 22. Nb3 $14 {[%emt 0:05:52]} Qxd1 {[%emt 0:03:00]} 23. Raxd1 {[%emt 0:00:05]} Bd4 {[%emt 0:05:33]} 24. Rde1 {[%emt 0:04:26]} e5 {[%emt 0:06:53]} 25. Bd7 {[%emt 0:06:17]} (25. Nd2 $1 $14 {is superior.}) 25... Rf8 $11 {[%emt 0:02:30]} 26. Bxc6 {[%emt 0:02:28]} bxc6 {[%emt 0:00:06]} 27. Na5 {[%emt 0:01:48]} Rad8 {[%emt 0:03:28]} 28. Nc4 {[%emt 0:02:19]} Rxf1+ {[%emt 0:00:29]} 29. Rxf1 {[%emt 0:00:09][%mdl 4096] Endgame KRB-KRN} Kg7 {[%emt 0:00:47]} 30. g3 {[%emt 0:01:42]} g4 {[%emt 0:02:56]} 31. Kg2 {[%emt 0:01:27]} Rd7 {[%emt 0:04:33]} 32. h3 {[%emt 0:01:34]} gxh3+ {[%emt 0:00:19]} 33. Kxh3 {[%emt 0:01:30]} e4 {[%emt 0:05:32] Inhibits Rf3.} 34. Re1 {[%emt 0:01:48]} (34. Rf4 $14 {deserves consideration.}) 34... e3 $1 {[%emt 0:00:06]} 35. Nxe3 {[%emt 0:01:25] Threatens to win with Nc4.} Bxe3 {[%emt 0:02:20]} 36. Rxe3 {[%emt 0:00:04] KR-KR} Kf6 {[%emt 0:00:36]} 37. Rd3 {[%emt 0:02:16]} Ke5 {[%emt 0:00:34] [#]} (37... c4 $1 $11 {remains equal.} 38. Rd2 Kf5) 38. Kg4 $1 $16 {[%emt 0:00:38] Kg5 is the strong threat.} c4 {[%emt 0:00:14]} (38... Rxd6 $2 39. Rxd6 Kxd6 40. Kg5 $18) 39. Rd1 {[%emt 0:01:01] Strongly threatening Kg5.} a5 $2 {[%emt 0:00:37][%mdl 8192] Black cannot hold the game after this.} (39... Rxd6 $2 40. Rxd6 Kxd6 41. Kg5 $18) (39... Kf6 $16 40. Rd2 a6) 40. Kg5 $18 {[%emt 0:00:44]} a4 {[%emt 0:00:25]} 41. a3 {[%emt 0:34:08]} Rd8 {[%emt 0:30:49]} 42. d7 {[%emt 0:00:00] White mates.} Ke6 {[%emt 0:00:00]} 43. Kxg6 {[%emt 0:00:00]} Rg8+ {[%emt 0:00:00]} 44. Kh7 {[%emt 0:00:00]} Rd8 {[%emt 0:00:00]} 45. Kg7 {[%emt 0:00:00]} c5 {[%emt 0:00:00]} 46. g4 {[%emt 0:00:00][%cal Bg3g4,Bg4g5,Bg5g6][%mdl 32]} Ke7 {[%emt 0:00:00]} 47. g5 {[%emt 0:00:00]} Ke6 {[%emt 0:00:00]} 48. g6 {[%emt 0:00:00]} Ke7 {[%emt 0:00:00]} 49. Kh7 {[%emt 0:00:00]} c3 50. bxc3 {[%emt 0:00:00] Weighted Error Value: White=0.09 (flawless) /Black=0.32} 1-0

[Event "Mitropa Cup Women 2022"]
[Site "Corte"]
[Date "2022.05.07"]
[Round "8.5"]
[White "Zimina, Olga"]
[Black "Unuk, Laura"]
[Result "1/2-1/2"]
[ECO "A06"]
[WhiteElo "2336"]
[BlackElo "2338"]
[Annotator "TA"]
[PlyCount "98"]
[EventDate "2022.04.30"]
[EventType "team-tourn"]
[EventCountry "FRA"]
[SourceTitle "playchess.com"]
[Source "ChessBase"]
[SourceQuality "1"]
[WhiteTeam "Italy"]
[BlackTeam "Slovenia"]
[WhiteTeamCountry "ITA"]
[BlackTeamCountry "SLO"]
[TimeControl "40/5400+30:1800+30"]

{[%evp 11,98,0,12,-9,-16,-19,-19,-12,-9,-94,-78,-115,-112,-104,-37,-56,-45,-56,-54,-48,-46,-46,-53,-45,-43,-45,-46,-69,-73,-72,-56,-56,-56,-46,-41,-91,-89,-90,-74,-79,-74,-74,-67,-80,-81,-88,-35,-79,-35,-79,-79,-79,-79,-79,-31,-46,-27,-20,-22,-34,-41,-38,-38,-79,-72,-95,0,0,0,0,0,0,0,0,0,0,0,0,0,0,0,0,0,0,0,0,0,0,0]} 1. Nf3 {[%emt 0:00:07]} d5 {[%emt 0:00:08]} 2. g3 {[%emt 0:00:12]} Nf6 {[%emt 0:00:17]} 3. Bg2 {[%emt 0:00:06]} g6 {[%emt 0:00:19]} 4. O-O {[%emt 0:02:11]} Bg7 {[%emt 0:00:08]} 5. d4 {[%emt 0:02:21]} O-O {[%emt 0:00:45]} 6. Nbd2 {[%emt 0:00:52]} a5 {[%emt 0:06:32][%cal Oc7c5,Ba7a5,Ba5a4][%mdl 32]} 7. Re1 {[%emt 0:06:39] 7.a4 is the modern continuation. D02: 1 d4 d5 2 Nf3 sidelines, including 2...Nf6 3 g3 and 2...Nf6 3 Bf4.} c5 {[%emt 0:10:26] [#]} 8. dxc5 $146 {[%emt 0:15:19]} ({Predecessor:} 8. c3 cxd4 9. cxd4 a4 10. b4 Ne4 11. a3 Nd6 12. Bb2 Nd7 13. Rc1 Nb6 14. Ne5 Be6 {0-1 (40) Eyvazli,I (1818)-Firat,B (2463) Lvov 2019}) 8... Na6 {[%emt 0:13:44][%cal Bb8a6,Ba6c5,Bc5e4][%mdl 32]} 9. c4 {[%emt 0:00:28]} (9. Nb3 a4 10. Nbd2 (10. Nbd4 Nxc5 11. c3 a3 $17) 10... Nxc5 $17) 9... Nxc5 {[%emt 0:01:07]} 10. Nb3 {[%emt 0:10:21]} (10. cxd5 $11 {remains equal.} Nxd5 11. Nb3 Nxb3 12. Qxb3) 10... Nce4 $17 {[%emt 0:05:52] Threatens to win with ...a4.} 11. cxd5 {[%emt 0:01:24]} a4 {[%emt 0:00:56]} 12. Nbd4 {[%emt 0:01:07] [#]} Qxd5 {[%emt 0:08:26]} ({Reject} 12... Nxd5 $6 13. Qd3 Nc5 14. Qc4 $11) (12... Ng4 $1 $17 {[%cal Rg4f2]} 13. Rf1 Qxd5) 13. Ng5 $15 {[%emt 0:07:13]} Rd8 {[%emt 0:20:41]} 14. Nxe4 {[%emt 0:23:01]} Nxe4 {[%emt 0:02:33]} 15. Be3 {[%emt 0:03:05][%cal Od4b5]} Bxd4 {[%emt 0:04:54]} 16. Bxd4 {[%emt 0:00:46]} Qxd4 {[%emt 0:02:33]} 17. Bxe4 {[%emt 0:00:15]} Be6 {[%emt 0:02:30]} 18. Qxd4 {[%emt 0:08:10]} Rxd4 {[%emt 0:00:07]} 19. Bxb7 {[%emt 0:04:07]} Rb8 {[%emt 0:00:16]} 20. Ba6 {[%emt 0:00:55][%cal Ob2b3]} ({Don't go for} 20. e3 $2 Rd2 21. Bc6 Rbxb2 22. Bxa4 Rxf2 $19) 20... Rxb2 {[%emt 0:01:12] Strongly threatening ...a3.} 21. a3 {[%emt 0:00:04]} Rdd2 {[%emt 0:01:36]} 22. Rec1 {[%emt 0:01:06]} Kg7 {[%emt 0:05:53]} 23. Bc4 {[%emt 0:01:21]} (23. Kf1 $15) 23... Bxc4 $17 {[%emt 0:04:59]} 24. Rxc4 {[%emt 0:00:01]} Rxe2 {[%emt 0:00:04][%mdl 4096] Endgame KRR-KRR} 25. Rf1 {[%emt 0:00:08]} e5 {[%emt 0:00:13]} 26. Rxa4 {[%emt 0:00:04]} e4 {[%emt 0:00:15]} 27. Rb4 {[%emt 0:08:04]} Ra2 {[%emt 0:00:05]} 28. Rb3 {[%emt 0:00:10]} g5 {[%emt 0:01:15]} (28... f5 $17 29. Rc3 Kh6) 29. h3 {[%emt 0:01:01]} h5 {[%emt 0:03:24]} 30. Rc3 {[%emt 0:00:14]} Kg6 {[%emt 0:00:31]} 31. Rc6+ {[%emt 0:00:26]} f6 {[%emt 0:00:14]} 32. Rc3 {[%emt 0:00:04]} Kf5 {[%emt 0:03:04]} (32... h4 $17 {And now ...hxg3 would win.} 33. g4 Rab2) 33. Rc5+ $1 $15 {[%emt 0:00:20]} Ke6 $1 {[%emt 0:00:15]} 34. Rc6+ {[%emt 0:00:15]} Ke5 {[%emt 0:00:28]} 35. Rc5+ {[%emt 0:00:17]} Kd6 {[%emt 0:00:22]} 36. Rc3 {[%emt 0:00:32]} h4 {[%emt 0:00:56]} 37. g4 $1 {[%emt 0:03:30]} Ke5 {[%emt 0:01:03]} 38. Rc5+ {[%emt 0:00:07] [#]} Kd4 {[%emt 0:00:40]} ({Black should play} 38... Ke6 $1 $17 39. Rf5 Kf7) 39. Rf5 $11 {[%emt 0:01:06] The position is equal.} Rxa3 {[%emt 0:00:08]} 40. Rxf6 {[%emt 0:01:09]} Rxh3 {[%emt 0:00:27]} 41. Rf5 {[%emt 0:31:29]} e3 {[%emt 0:23:34]} 42. Rxg5 {[%emt 0:00:00]} Ke4 {[%emt 0:02:10] aiming for ...Rf3.} 43. Rf5 {[%emt 0:00:00]} exf2+ {[%emt 0:04:38]} 44. R5xf2 {[%emt 0:00:00]} Rg3+ {[%emt 0:00:05]} 45. Kh2 {[%emt 0:00:00]} Rxf2+ {[%emt 0:00:06]} 46. Rxf2 {[%emt 0:00:00]} Rxg4 {[%emt 0:00:06]} 47. Kh3 {[%emt 0:00:00]} Rf4 {[%emt 0:00:03]} 48. Rxf4+ {[%emt 0:00:00]} Kxf4 {[%emt 0:00:02]} 49. Kxh4 {[%emt 0:00:00]} Ke5 {Weighted Error Value: White=0.11 (very precise) /Black=0.09 (flawless)} 1/2-1/2

[Event "Mitropa Cup Women 2022"]
[Site "Corte"]
[Date "2022.05.07"]
[Round "8.5"]
[White "Hakimifard, Ghazal"]
[Black "Schulze, Lara"]
[Result "1-0"]
[ECO "C60"]
[WhiteElo "2288"]
[BlackElo "2303"]
[Annotator "TA"]
[PlyCount "95"]
[EventDate "2022.04.30"]
[EventType "team-tourn"]
[EventCountry "FRA"]
[SourceTitle "playchess.com"]
[Source "ChessBase"]
[SourceQuality "1"]
[WhiteTeam "Switzerland"]
[BlackTeam "Germany"]
[WhiteTeamCountry "SUI"]
[BlackTeamCountry "GER"]
[TimeControl "40/5400+30:1800+30"]

{[%evp 14,95,24,20,33,22,30,7,7,0,0,0,0,0,12,14,14,21,7,0,2,18,20,25,0,7,14,0,47,-1,-4,-27,-21,-15,0,0,33,10,125,0,485,468,449,377,361,167,266,196,173,131,159,112,191,152,247,248,219,252,181,172,144,159,116,81,222,60,62,0,218,56,335,331,335,335,335,326,12839,12839,12839,10823,12848,12848,29991,29992]} 1. e4 {[%emt 0:00:03]} e5 {[%emt 0:00:06]} 2. Nf3 {[%emt 0:00:04]} Nc6 {[%emt 0:00:04]} 3. Bb5 {[%emt 0:00:05]} g6 {[%emt 0:00:07]} 4. O-O {[%emt 0:00:11]} Bg7 {[%emt 0:00:45]} 5. c3 {[%emt 0:00:10]} a6 {[%emt 0:00:25]} 6. Ba4 {[%emt 0:00:20]} Nge7 {[%emt 0:00:28]} 7. d4 {[%emt 0:01:04]} exd4 {[%emt 0:00:22]} 8. cxd4 {[%emt 0:00:01]} b5 {[%emt 0:00:19] C60: Ruy Lopez: Unusual Black 3rd moves and 3...g6.} 9. Bb3 {[%emt 0:00:04]} O-O {[%emt 0:00:24]} 10. Nc3 {[%emt 0:00:08] Inhibits d5.} Na5 {[%emt 0:00:15] The position is equal.} 11. Bc2 {[%emt 0:00:07]} (11. Bg5 {is interesting.} h6 12. Bxe7 Qxe7 13. Nd5) 11... d6 {[%emt 0:00:06]} 12. h3 {[%emt 0:00:57]} c5 {[%emt 0:00:37]} 13. d5 {[%emt 0:00:13]} Nc4 {[%emt 0:02:18]} 14. Bd3 {[%emt 0:00:14]} Ne5 {[%emt 0:01:10]} 15. Nxe5 {[%emt 0:01:25]} Bxe5 {[%emt 0:00:07]} 16. Bh6 {[%emt 0:06:36] [#]} b4 $146 {[%emt 0:02:04]} ({Predecessor:} 16... Re8 17. Rb1 f5 18. Bg5 Qd7 19. Ne2 fxe4 20. Bxe4 Nf5 21. Bf3 Qg7 22. Qd2 Nd4 23. Nxd4 Bxd4 {½-½ (46) Rahman,A (2000)-Titorenko,K (1860) London 2019}) 17. Na4 {[%emt 0:04:53]} Rb8 {[%emt 0:00:31]} 18. a3 {[%emt 0:07:53]} a5 {[%emt 0:05:41]} 19. axb4 {[%emt 0:05:36]} axb4 {[%emt 0:01:13]} 20. b3 {[%emt 0:05:03]} f5 {[%emt 0:10:07] [#]} (20... Re8 $11) 21. Ra2 {[%emt 0:05:03]} (21. Bc4 $1 $14) 21... Rf7 $11 {[%emt 0:17:23]} 22. Bg5 {[%emt 0:03:02]} fxe4 {[%emt 0:10:51]} 23. Bxe4 {[%emt 0:00:05]} Bf5 {[%emt 0:00:44]} 24. Bf3 {[%emt 0:19:23]} c4 {[%emt 0:16:32]} 25. Re1 {[%emt 0:11:22][%cal Oe1e5] And now Rxe5! would win.} Qd7 {[%emt 0:07:26] [#]} (25... cxb3 $11 {remains equal.} 26. Qxb3 Qc8) 26. Be2 {[%emt 0:08:48]} (26. Rxe5 $1 $16 {[%mdl 512]} dxe5 27. d6) 26... Nxd5 {[%emt 0:08:52][%mdl 8192]} 27. Bxc4 $18 {[%emt 0:03:40]} (27. Qxd5 Be6 28. Qd2 cxb3 $15) 27... Nc3 {[%emt 0:10:31]} 28. Nxc3 {[%emt 0:00:02]} bxc3 {[%emt 0:00:07]} 29. f4 {[%emt 0:03:45]} (29. Qd5 $142) 29... c2 {[%emt 0:01:11]} (29... d5 $142 30. Bxd5 (30. fxe5 dxc4 31. Qxd7 Rxd7 $15) 30... c2 31. Rxc2 (31. Bxf7+ Qxf7 32. Rxc2 Bxc2 $18) 31... Bxc2 32. Bxf7+ Qxf7 33. Qxc2 Bd6) 30. Qd2 {[%emt 0:05:05]} (30. Bxf7+ $6 Qxf7 31. Rxc2 Bxc2 32. Qxc2 Bd4+ 33. Kh2 Bf6 $16) 30... d5 {[%emt 0:00:48]} 31. Bxd5 {[%emt 0:02:16]} (31. fxe5 dxc4 32. e6 (32. Qxd7 $2 Rxd7 33. b4 Rd1 $19) 32... Bxe6 33. bxc4 Qxd2 34. Bxd2 Bf5 $17) 31... Be6 {[%emt 0:03:08]} 32. fxe5 {[%emt 0:03:27]} (32. Rxe5 $142 Bxd5 33. Qxc2 (33. Rxc2 Bxb3 34. Qxd7 Rxd7 $16)) 32... Bxd5 {[%emt 0:00:35]} (32... Qxd5 $16 33. Rxc2 Qxd2 34. Rxd2 Rfb7) 33. Rxc2 {[%emt 0:00:06]} Rxb3 {[%emt 0:00:37]} (33... Bxb3 $16 {might work better.} 34. Qxd7 Rxd7) 34. Rc5 {[%emt 0:01:57]} Be6 {[%emt 0:00:35]} 35. Qxd7 {[%emt 0:00:36]} Rxd7 {[%emt 0:00:09]} 36. Rc6 {[%emt 0:01:59]} Bd5 {[%emt 0:00:37]} 37. Rc8+ {[%emt 0:00:02]} Kf7 {[%emt 0:00:26]} 38. Rh8 {[%emt 0:02:01]} Ke6 {[%emt 0:00:29]} (38... Rb2 $16 39. e6+ (39. Rxh7+ Ke6 $14) 39... Bxe6) 39. Re8+ $2 {[%emt 0:00:13]} (39. Rf8 $1 $18 {[%cal Rf8f6] Hoping for Rf6+.} h6 40. Rf6+ Ke7 41. Bxh6) 39... Kf7 $14 {[%emt 0:00:47]} 40. Rh8 {[%emt 0:00:20] White is more active.} (40. Rc8 $14) 40... Ke6 $18 {[%emt 0:00:14] [#]} 41. Bf6 $2 {[%emt 0:07:13]} (41. Rf8 $1 $18 {[%cal Rf8f6] aiming for Rf6+.} h6 42. Rf6+ Ke7 43. Bxh6) 41... Bxg2 $2 {[%emt 0:18:04][%mdl 8192]} 42. Re8+ {[%emt 0:03:54]} ({Stronger than} 42. Kxg2 Rd2+ 43. Kh1 Rxh3+ 44. Kg1 Rg3+ 45. Kh1 Rh3+ 46. Kg1 Rg3+ 47. Kh1 Rh3+ $11) 42... Kf5 {[%emt 0:00:28] [#]} 43. e6 $1 {[%emt 0:02:44][%cal Be5e6,Be6e7][%mdl 32]} ({Weaker is} 43. Kxg2 Rd2+ 44. Kh1 Rxh3+ 45. Kg1 Rg3+ 46. Kh1 Rh3+ 47. Kg1 Rg3+ 48. Kh1 Rh3+ $11) 43... Rdd3 {[%emt 0:01:32]} 44. Bh4 {[%emt 0:06:13][%cal Re8f8]} g5 $2 {[%emt 0:10:26]} (44... Bxh3 45. e7 Re3 46. Rxe3 Rxe3) 45. Rf8+ {[%emt 0:01:04]} Kg6 {[%emt 0:00:05]} 46. Kxg2 {[%emt 0:02:01]} gxh4 {[%emt 0:02:54]} 47. e7 {[%emt 0:00:23]} Rb2+ {[%emt 0:00:43]} 48. Kf1 {[%emt 0:00:52] Weighted Error Value: White=0.29 (precise) /Black=0.63} 1-0

[Event "Mitropa Cup Women 2022"]
[Site "Corte"]
[Date "2022.05.07"]
[Round "8.6"]
[White "Urh, Zala"]
[Black "Brunello, Marina"]
[Result "1/2-1/2"]
[ECO "A61"]
[WhiteElo "2315"]
[BlackElo "2349"]
[Annotator "TA"]
[PlyCount "102"]
[EventDate "2022.04.30"]
[EventType "team-tourn"]
[EventCountry "FRA"]
[SourceTitle "playchess.com"]
[Source "ChessBase"]
[SourceQuality "1"]
[WhiteTeam "Slovenia"]
[BlackTeam "Italy"]
[WhiteTeamCountry "SLO"]
[BlackTeamCountry "ITA"]
[TimeControl "40/5400+30:1800+30"]

{[%evp 16,102,56,33,35,36,41,35,53,29,52,53,43,30,44,25,35,16,0,-15,-12,-50,-27,-59,-46,-46,-1,-32,-13,-12,0,0,0,0,0,0,0,-7,-10,-54,0,-45,-42,-83,-33,-45,0,-82,-42,-46,-43,-37,278,270,231,95,104,87,78,85,100,92,163,95,101,69,75,55,65,44,42,41,57,22,26,4,6,0,0,0,79,0,0,0,0,0,0,0,0]} 1. d4 {[%emt 0:00:06]} Nf6 {[%emt 0:00:06]} 2. c4 {[%emt 0:00:09]} c5 {[%emt 0:00:36]} 3. d5 {[%emt 0:00:14]} e6 {[%emt 0:00:04]} 4. Nc3 {[%emt 0:00:15]} exd5 {[%emt 0:00:11]} 5. cxd5 {[%emt 0:00:05]} d6 {[%emt 0:00:03]} 6. Nf3 {[%emt 0:01:26]} g6 {[%emt 0:00:19]} 7. Bf4 {[%emt 0:00:16]} a6 {[%emt 0:00:24] 7...Bg7 deserves study.} 8. a4 {[%emt 0:00:04]} Bg7 {[%emt 0:00:04]} 9. e3 {[%emt 0:02:57]} Bg4 {[%emt 0:01:02] A61: Modern Benoni: Nf3 without early e4.} 10. Be2 {[%emt 0:01:53]} Bxf3 {[%emt 0:00:10]} 11. Bxf3 {[%emt 0:00:06]} O-O {[%emt 0:00:08] White is slightly better.} 12. O-O {[%emt 0:01:15]} Qc7 {[%emt 0:08:38] [#]} 13. Qc2 $146 {[%emt 0:08:03]} ({Predecessor:} 13. Qd2 Nbd7 14. Rfc1 Rab8 15. b4 Rfe8 16. Rab1 Ne5 17. Bxe5 Rxe5 18. b5 Rbe8 {1-0 (18) Sivakumar,S (2143)-Simeonov,S (2297) Chess.com INT 2021}) 13... Nbd7 {[%emt 0:00:14][%cal Bb8d7,Bd7e5,Be5d3][%mdl 32]} 14. g3 {[%emt 0:03:30]} Rab8 {[%emt 0:04:06]} 15. e4 {[%emt 0:05:15]} Rfe8 {[%emt 0:02:35]} 16. Bg2 {[%emt 0:07:53]} Ne5 {[%emt 0:02:14]} 17. Ne2 {[%emt 0:10:29]} Nfd7 {[%emt 0:08:28]} 18. Rad1 {[%emt 0:16:08]} Rec8 {[%emt 0:07:12]} 19. Bc1 {[%emt 0:05:19]} c4 $1 {[%emt 0:03:02]} 20. Be3 {[%emt 0:03:23]} Nd3 {[%emt 0:05:12]} 21. Nd4 {[%emt 0:02:22]} N7c5 {[%emt 0:05:24] Pair of Knights!} 22. Rb1 {[%emt 0:07:58]} ({Reject} 22. Qxc4 Nxb2 23. Qb4 Ncd3 $17) 22... b5 {[%emt 0:02:45]} 23. axb5 {[%emt 0:02:20]} axb5 {[%emt 0:00:05]} 24. b4 {[%emt 0:01:59]} cxb3 {[%emt 0:13:57]} 25. Nxb3 {[%emt 0:00:33]} Nxb3 {[%emt 0:01:20]} 26. Qxd3 {[%emt 0:04:21]} Nc5 {[%emt 0:00:37]} 27. Qd2 {[%emt 0:01:49]} Qe7 {[%emt 0:00:55]} ({Black should play} 27... Na4 $1 $15) 28. f3 {[%emt 0:01:24]} Na4 {[%emt 0:02:35]} 29. Rf2 {[%emt 0:06:21]} Nc3 {[%emt 0:06:21]} ({Better is} 29... Qb7 $17) 30. Rb3 $15 {[%emt 0:03:41]} Ra8 {[%emt 0:02:46]} 31. Bd4 {[%emt 0:01:42]} (31. Bh3 $11 {remains equal.} Rc7 32. Qd3) 31... Ra1+ {[%emt 0:00:27]} 32. Bf1 {[%emt 0:00:12]} Bxd4 {[%emt 0:04:38]} 33. Qxd4 {[%emt 0:00:02] [#]} Qc7 {[%emt 0:01:06][%mdl 8192]} (33... Rd1 $1 $15 {stays ahead.} 34. Qb6 Rc1) 34. Rc2 $18 {[%emt 0:02:22]} b4 {[%emt 0:06:16]} 35. Rxb4 {[%emt 0:00:01]} (35. Qxb4 $18 {and the rest is easy.} Qa7+ 36. Qb6) 35... Qc5 $16 {[%emt 0:02:33]} 36. Kg2 {[%emt 0:01:45]} Qxd4 {[%emt 0:00:58]} 37. Rxd4 {[%emt 0:00:02][%cal Bb4d4,Bd4d2,Bd2b2][%mdl 32]} Rc5 {[%emt 0:00:12][%cal Oc3e4]} 38. Rdd2 {[%emt 0:01:10]} f6 {[%emt 0:01:44] [#]} (38... Kg7 $16 {keeps fighting.}) 39. Bd3 {[%emt 0:00:31]} (39. Rb2 $1 $18) 39... Na4 {[%emt 0:01:33]} 40. Rxc5 {[%emt 0:00:24]} Nxc5 {[%emt 0:00:09][%mdl 4096] Endgame KRB-KRN} 41. Bb5 {[%emt 0:05:03]} Kf7 {[%emt 0:01:57]} 42. Bc6 {[%emt 0:02:42]} Ra3 {[%emt 0:01:01]} 43. Rb2 {[%emt 0:02:11]} Nb3 {[%emt 0:00:16]} 44. f4 {[%emt 0:06:34]} Ke7 {[%emt 0:01:31]} 45. Kh3 {[%emt 0:03:29]} h5 {[%emt 0:02:43]} 46. Kh4 {[%emt 0:04:24] Hoping for f5.} Nd4 {[%emt 0:01:56] Prevents f5.} 47. Kh3 {[%emt 0:04:34]} g5 {[%emt 0:00:51]} (47... Nb3 $11) 48. Kg2 {[%emt 0:01:47]} (48. Rb7+ $16 Kf8 49. fxg5 fxg5 50. Rh7) 48... gxf4 $11 {[%emt 0:11:39] The position is equal.} 49. gxf4 {[%emt 0:00:13]} Re3 {[%emt 0:00:02]} 50. Rb7+ {[%emt 0:00:35]} Kf8 {[%emt 0:00:05]} 51. Rb8+ {[%emt 0:00:54]} Kg7 {[%emt 0:00:34] Blacks defense is rewarded with a draw.  Weighted Error Value: White=0.22 (precise) /Black=0.27 (precise)} 1/2-1/2